bitfinex-derivatives/quotes_ETHF0:USTF0_20250903
["timestamp","ask_amount","ask_price","bid_price","bid_amount"]
[1756885158802,0.9967,4311.0,4310.9,0.7632]
[1756885159207,0.6717,4311.0,4310.9,0.7632]
[1756885159511,0.21,4311.0,4310.9,0.7632]
[1756885159813,0.4357,4311.0,4310.9,0.7632]
[1756885160008,0.7607,4311.0,4310.9,0.7632]
[1756885161611,2.20468017,4311.0,4310.5,0.1292]
[1756885161908,0.7607,4310.9,4310.8,0.5465]
[1756885162510,0.7607,4310.9,4310.8,0.7632]
[1756885163509,0.21,4310.9,4310.8,0.7632]
[1756885163805,3.2078,4311.1,4311.0,0.1292]
[1756885164007,3.2078,4311.1,4311.0,0.8924]
[1756885164204,0.21,4311.2,4311.1,0.7632]
[1756885165308,2.10998017,4311.2,4310.6,0.3354]
[1756885169110,0.7607,4311.2,4311.1,0.5465]
[1756885170617,0.7607,4311.2,4310.6,0.3354]
[1756885171124,0.7607,4311.2,4311.1,0.7632]
[1756885171318,0.4357,4311.2,4311.1,0.7632]
[1756885171512,0.236,4311.4,4311.2,0.3354]
[1756885171719,0.9967,4311.5,4311.4,0.4278]
[1756885171918,0.9967,4311.5,4311.4,0.7632]
[1756885173018,0.9967,4311.5,4311.4,0.5465]
[1756885175624,1.1235,4311.5,4311.1,0.3354]
[1756885175920,2.10998017,4311.2,4311.1,0.5465]
[1756885176625,0.325,4311.6,4311.1,0.7632]
[1756885176816,0.561,4311.6,4311.5,0.1292]
[1756885177012,0.9967,4311.6,4311.5,0.8924]
[1756885177211,0.21,4311.6,4311.5,0.8924]
[1756885177417,0.535,4312.1,4312.0,0.557]
[1756885177625,0.7607,4312.1,4312.0,0.8924]
[1756885178020,0.7607,4312.1,4312.0,0.7632]
[1756885178527,0.7607,4312.1,4311.5,0.1292]
[1756885178715,0.7607,4311.7,4311.6,0.5465]
[1756885179628,0.4357,4311.7,4311.6,0.7632]
[1756885180220,0.7607,4311.7,4311.6,0.7632]
[1756885181021,0.7607,4311.7,4311.6,0.5465]
[1756885182628,0.7607,4311.7,4311.6,0.7632]
[1756885185218,0.4191,4311.3,4311.2,0.5354]
[1756885185522,0.7391,4311.3,4311.2,0.7391]
[1756885185928,0.2137,4311.3,4311.2,0.7391]
[1756885186320,1.34928017,4311.6,4311.5,0.1295]
[1756885186524,0.236,4311.8,4311.6,0.3285]
[1756885186824,0.236,4311.8,4311.7,0.7391]
[1756885186825,0.9751,4311.8,4311.7,0.7391]
[1756885187125,2.32438017,4311.8,4311.7,0.7391]
[1756885187624,2.32438017,4311.8,4311.1,3.2078]
[1756885187830,0.7391,4311.3,4311.2,0.7391]
[1756885188325,0.7391,4311.2,4311.1,0.4106]
[1756885188525,0.7391,4311.2,4311.1,0.7391]
[1756885190629,0.236,4311.5,4311.2,0.3285]
[1756885190826,1.34928017,4311.4,4311.3,0.4106]
[1756885191028,1.56298017,4311.4,4311.3,0.7391]
[1756885191828,3.2078,4311.9,4311.3,0.4106]
[1756885192034,3.4215,4311.9,4311.8,0.7391]
[1756885192527,3.9469,4311.9,4311.8,0.7391]
[1756885192735,3.6269,4311.9,4311.5,0.3285]
[1756885192921,0.1268,4311.5,4311.1,0.3285]
[1756885193125,0.7391,4311.2,4311.1,0.5354]
[1756885193525,1.84439012,4311.2,4311.1,0.7391]
[1756885193725,1.52439012,4311.2,4311.1,0.7391]
[1756885195535,1.84439012,4311.2,4311.1,0.7391]
[1756885196737,1.84439012,4311.2,4311.1,0.5354]
[1756885197034,0.2137,4310.7,4310.6,3.8534]
[1756885197230,0.2137,4310.7,4310.6,0.7391]
[1756885199138,1.10529012,4310.9,4310.7,0.3285]
[1756885199338,0.2137,4310.8,4310.7,0.7391]
[1756885200936,0.7391,4310.5,4310.4,0.9741]
[1756885201145,0.4191,4310.5,4310.4,0.9741]
[1756885202438,1.31899012,4310.9,4310.8,0.4106]
[1756885202638,1.31899012,4310.9,4310.8,0.7391]
[1756885202839,1.84439012,4310.9,4310.8,0.7391]
[1756885204842,1.84439012,4310.9,4310.8,0.5354]
[1756885208352,1.84439012,4310.9,4310.8,0.3285]
[1756885209233,1.84439012,4310.9,4310.8,0.5354]
[1756885211639,1.84439012,4310.9,4310.5,0.1295]
[1756885211845,0.7579,4310.4,4310.3,0.5167]
[1756885212142,1.86319012,4310.4,4310.3,0.5167]
[1756885214045,1.86319012,4310.4,4310.0,0.3157]
[1756885214251,0.7579,4309.8,4309.7,0.7281]
[1756885214442,0.4376,4309.8,4309.7,0.7281]
[1756885215141,0.7579,4309.8,4309.7,0.7281]
[1756885216353,1.86319012,4309.8,4309.7,0.7281]
[1756885216554,0.3203,4309.7,4309.6,3.5235]
[1756885216845,0.7579,4309.7,4309.6,3.5235]
[1756885217052,0.7579,4309.7,4309.6,3.7245]
[1756885218351,0.7579,4309.7,4309.6,3.9359]
[1756885221658,0.2212,4309.7,4309.6,3.9359]
[1756885223459,1.10529012,4309.8,4309.6,3.6202]
[1756885223666,1.32649012,4309.8,4309.7,0.7281]
[1756885226171,1.86319012,4309.8,4309.7,0.7281]
[1756885226765,1.24626185,4311.7,4309.7,0.7281]
[1756885226971,3.9657,4310.7,4310.6,0.5167]
[1756885227168,3.6454,4310.7,4310.6,0.7281]
[1756885227563,3.9657,4310.7,4310.6,0.7281]
[1756885228070,5.07099012,4310.7,4310.6,0.7281]
[1756885235566,5.07099012,4310.7,4310.1,3.2078]
[1756885235772,0.3203,4310.6,4310.2,0.3157]
[1756885235974,0.4376,4310.3,4310.2,0.7281]
[1756885236876,1.54289012,4310.3,4310.2,0.7281]
[1756885238770,1.10529012,4310.5,4310.3,0.3157]
[1756885238963,1.32649012,4310.5,4310.4,0.4124]
[1756885239164,1.32649012,4310.5,4310.4,0.7281]
[1756885243185,1.85269012,4310.5,4310.4,0.7281]
[1756885244774,0.7474,4310.5,4310.4,0.7281]
[1756885244972,1.85269012,4310.5,4310.4,0.7281]
[1756885246174,1.54139012,4310.5,4310.4,0.7281]
[1756885246475,0.1203,4311.0,4310.9,0.7086]
[1756885246476,0.53,4311.0,4310.9,0.7086]
[1756885246673,0.7449,4311.0,4310.9,0.7086]
[1756885247477,0.7449,4311.0,4310.9,0.497]
[1756885249081,0.7449,4311.0,4310.9,0.7086]
[1756885250682,3.2078,4311.3,4311.0,0.426]
[1756885250877,3.2078,4311.3,4311.2,0.7086]
[1756885251775,0.235,4311.7,4311.5,0.1309]
[1756885251776,0.2187,4311.6,4311.5,0.1309]
[1756885252182,0.7449,4311.6,4311.5,0.5444]
[1756885252384,0.7449,4311.6,4311.5,0.7086]
[1756885253680,0.7449,4311.6,4311.0,0.1309]
[1756885253881,1.85019012,4311.1,4311.0,0.6279]
[1756885254184,0.4336,4310.7,4310.6,0.2951]
[1756885254379,0.7449,4310.7,4310.6,0.7086]
[1756885254574,0.4336,4310.7,4310.6,0.7086]
[1756885254985,0.2187,4310.7,4310.6,0.7086]
[1756885255281,1.10529012,4310.9,4310.7,0.2951]
[1756885255477,0.2187,4310.9,4310.8,0.4135]
[1756885255685,0.235,4311.4,4311.3,0.4135]
[1756885255880,0.9799,4311.4,4311.3,0.7086]
[1756885258883,2.01861336,4311.4,4311.3,0.7086]
[1756885259285,2.32991336,4311.4,4311.3,0.7086]
[1756885259881,0.4336,4311.4,4311.3,0.7086]
[1756885260083,0.2187,4311.4,4311.3,0.7086]
[1756885260277,0.7449,4311.6,4311.5,0.2116]
[1756885260582,0.7449,4311.6,4311.5,0.4135]
[1756885260778,0.7449,4311.6,4311.5,0.7086]
[1756885260987,0.7449,4311.6,4311.5,0.497]
[1756885261186,0.7449,4311.2,4311.1,0.497]
[1756885261384,0.7449,4311.2,4310.5,0.5678]
[1756885261385,0.4336,4310.6,4310.5,0.5678]
[1756885261690,0.7449,4310.6,4310.5,1.0745]
[1756885263990,0.4336,4310.6,4310.5,1.0745]
[1756885265692,0.3113,4310.9,4310.5,0.7794]
[1756885265994,0.2187,4310.9,4310.8,0.4135]
[1756885266189,0.2187,4310.9,4310.8,0.7086]
[1756885268688,3.2078,4311.3,4311.0,0.1309]
[1756885268888,3.2078,4311.3,4311.2,0.7086]
[1756885269693,3.4265,4311.3,4311.2,0.7086]
[1756885272088,3.6414,4311.3,4311.2,0.7086]
[1756885272293,3.6414,4311.3,4310.9,0.2913]
[1756885272294,3.9519,4311.3,4310.9,0.2913]
[1756885272490,2.06211336,4311.0,4310.9,0.4878]
[1756885272791,2.06211336,4311.0,4310.6,0.2913]
[1756885272792,2.17631336,4311.0,4310.6,0.2913]
[1756885272996,1.75161336,4310.7,4310.6,0.2913]
[1756885273198,2.06211336,4310.7,4310.6,0.2913]
[1756885273396,2.06211336,4310.7,4310.6,0.4878]
[1756885275695,0.4016,4310.2,4310.1,3.8353]
[1756885275894,0.7121,4310.2,4310.1,4.1266]
[1756885276101,0.4016,4310.2,4310.1,4.1266]
[1756885276396,0.1997,4310.2,4310.1,4.1266]
[1756885276601,1.75161336,4310.7,4310.6,0.3925]
[1756885276794,2.06211336,4310.7,4310.6,0.6838]
[1756885276994,2.06211336,4310.7,4310.6,0.4878]
[1756885277503,0.4016,4310.2,4310.1,3.8353]
[1756885277703,0.7121,4310.2,4310.1,3.6003]
[1756885278002,0.7121,4310.2,4310.1,4.1266]
[1756885278800,0.7121,4310.2,4310.1,3.8916]
[1756885279003,0.7121,4310.2,4310.1,4.1266]
[1756885279203,0.1997,4310.2,4310.1,4.1266]
[1756885279402,0.3105,4310.5,4310.1,4.1266]
[1756885279601,0.5102,4310.5,4310.4,0.3925]
[1756885279903,0.5102,4310.5,4310.4,0.6838]
[1756885280206,0.7121,4310.5,4310.4,0.6838]
[1756885281202,1.35001336,4310.7,4310.4,0.6838]
[1756885281497,0.3105,4311.1,4310.6,0.6838]
[1756885281702,0.1997,4311.1,4311.0,0.809]
[1756885282099,0.7121,4311.1,4311.0,0.6838]
[1756885282505,0.7121,4311.1,4311.0,0.4878]
[1756885282804,0.7121,4310.7,4310.6,0.4878]
[1756885283104,2.06211336,4310.7,4310.6,0.4878]
[1756885283803,2.06211336,4310.7,4310.6,0.6838]
[1756885284502,0.3105,4310.6,4310.4,0.2913]
[1756885284699,0.7121,4310.5,4310.4,0.4878]
[1756885285205,0.3105,4310.4,4310.1,3.4991]
[1756885285506,1.54971336,4310.3,4310.2,0.3925]
[1756885285700,2.06211336,4310.3,4310.2,0.6838]
[1756885286798,2.06211336,4310.3,4310.2,0.2913]
[1756885287005,2.06211336,4310.3,4309.6,0.6838]
[1756885287006,0.1997,4309.7,4309.6,0.6838]
[1756885287702,2.06211336,4309.7,4309.6,0.6838]
[1756885287903,2.06211336,4309.7,4309.6,0.4878]
[1756885288999,1.35001336,4309.7,4309.4,0.2913]
[1756885289201,0.4016,4309.5,4309.4,0.6838]
[1756885289405,0.1997,4309.5,4309.4,0.6838]
[1756885292407,0.7121,4309.5,4309.4,0.4878]
[1756885293103,0.4016,4309.5,4309.4,0.6838]
[1756885293502,0.7121,4309.5,4309.4,0.6838]
[1756885294007,1.35001336,4309.7,4309.4,0.6838]
[1756885294209,1.54971336,4309.7,4309.6,0.6838]
[1756885295707,0.1997,4309.7,4309.6,0.6838]
[1756885297810,0.4016,4309.7,4309.6,0.6838]
[1756885298108,0.7121,4309.7,4309.6,0.6838]
[1756885298308,2.06211336,4309.7,4309.6,0.4878]
[1756885298508,1.75161336,4309.7,4309.3,0.2913]
[1756885298702,0.1997,4309.3,4309.2,3.6393]
[1756885299913,0.1997,4309.3,4309.2,0.6838]
[1756885299914,0.7121,4309.3,4309.2,0.6838]
[1756885304211,0.7121,4309.3,4309.2,0.4878]
[1756885305210,1.35001336,4309.4,4309.2,0.6864]
[1756885305414,1.54801336,4309.4,4309.3,0.6965]
[1756885306513,1.35001336,4310.0,4309.4,0.2951]
[1756885306717,2.04481336,4310.1,4310.0,0.2028]
[1756885307016,2.04481336,4310.1,4310.0,0.4979]
[1756885307315,2.04481336,4310.1,4310.0,0.8124]
[1756885308114,0.198,4310.1,4310.0,0.8124]
[1756885308314,3.2078,4310.2,4310.1,0.6965]
[1756885308513,3.4058,4310.2,4310.1,0.6965]
[1756885308922,3.2078,4310.2,4310.1,0.6965]
[1756885309112,0.4031,4310.9,4310.8,0.6965]
[1756885312913,0.6948,4310.9,4310.8,0.4979]
[1756885313317,0.2917,4310.8,4310.2,0.2951]
[1756885313620,1.75311336,4310.3,4310.2,0.6965]
[1756885313813,1.54801336,4310.3,4310.2,0.6965]
[1756885314214,1.35001336,4310.6,4310.5,0.1159]
[1756885314518,1.54801336,4310.6,4310.5,0.8124]
[1756885314719,0.198,4310.6,4310.5,0.8124]
[1756885315017,1.35001336,4310.9,4310.5,0.5173]
[1756885315321,4.75581336,4311.2,4311.1,0.6965]
[1756885316221,4.96091336,4311.2,4311.1,0.6965]
[1756885316914,5.25261336,4311.2,4311.1,0.6965]
[1756885317519,5.00790472,4311.2,4311.1,0.6965]
[1756885321219,5.00790472,4311.2,4310.6,0.2951]
[1756885321415,1.50840472,4310.7,4310.2,0.2951]
[1756885321619,1.80010472,4310.3,4310.2,0.4979]
[1756885321819,1.80010472,4310.3,4310.2,0.6965]
[1756885322019,0.6948,4310.3,4310.2,0.6965]
[1756885322222,1.30330472,4310.3,4310.2,0.6965]
[1756885324012,1.10530472,4310.3,4310.2,0.6965]
[1756885324219,1.30330472,4310.6,4310.5,0.8124]
[1756885324517,3.2078,4311.7,4310.5,0.5173]
[1756885324722,3.2078,4311.7,4311.3,0.6965]
[1756885324723,0.6948,4311.4,4311.3,0.6965]
[1756885324926,1.80010472,4311.4,4311.3,0.4979]
[1756885326525,1.80010472,4311.4,4311.3,0.6965]
[1756885327719,3.2078,4311.7,4311.3,0.6965]
[1756885327720,3.2078,4311.7,4311.5,0.1159]
[1756885327919,1.30330472,4311.6,4311.5,0.8124]
[1756885328425,1.80010472,4311.6,4311.5,0.8124]
[1756885329324,1.80010472,4311.6,4311.5,0.6965]
[1756885330029,0.4031,4311.2,4311.1,0.2951]
[1756885330224,1.80010472,4311.2,4311.1,0.6965]
[1756885331323,1.50840472,4311.2,4311.1,0.6965]
[1756885331828,1.81820472,4311.2,4310.5,0.1159]
[1756885332132,0.7165,4310.4,4310.3,0.9619]
[1756885332327,1.10530472,4310.5,4310.3,0.9619]
[1756885332517,1.31280472,4310.5,4310.4,0.3187]
[1756885332726,1.82180472,4310.5,4310.4,0.7269]
[1756885333219,1.51200472,4310.5,4310.4,0.7269]
[1756885334729,1.82180472,4310.5,4310.4,0.7269]
[1756885335132,1.90490472,4310.5,4310.2,0.235]
[1756885335329,0.3098,4310.4,4310.3,0.5125]
[1756885335523,0.7165,4310.4,4310.3,0.7269]
[1756885335727,1.82180472,4310.4,4310.3,0.7269]
[1756885336634,1.82180472,4310.4,4310.3,0.5125]
[1756885339137,1.82180472,4310.4,4310.0,0.1159]
[1756885339336,0.4067,4310.0,4309.9,0.4288]
[1756885339536,0.7165,4310.0,4309.9,0.9619]
[1756885341337,0.7165,4310.0,4309.9,0.7475]
[1756885341532,0.7165,4310.0,4309.9,0.5537]
[1756885341731,0.7165,4310.0,4309.9,0.3187]
[1756885341926,0.3098,4309.9,4309.8,0.3187]
[1756885342127,1.82180472,4309.9,4309.8,0.3187]
[1756885342837,0.7165,4309.3,4309.2,4.1697]
[1756885343038,1.51200472,4309.3,4309.2,4.1697]
[1756885343540,1.31280472,4309.3,4309.2,4.1697]
[1756885343729,1.41510472,4309.6,4309.2,4.1697]
[1756885343935,1.62260472,4309.6,4309.5,0.5354]
[1756885344140,1.82180472,4309.6,4309.5,0.8541]
[1756885347143,1.82180472,4309.6,4309.5,0.7269]
[1756885347338,1.82180472,4309.6,4309.2,3.2078]
[1756885347641,1.82180472,4309.3,4309.2,0.3187]
[1756885347830,1.82180472,4309.3,4309.2,0.5125]
[1756885348145,0.4067,4308.6,4308.5,0.8541]
[1756885348338,0.1192,4309.5,4308.5,0.8541]
[1756885348339,1.10530472,4308.7,4308.6,0.3187]
[1756885348542,1.82180472,4308.7,4308.6,0.7269]
[1756885350337,1.82180472,4308.7,4308.6,0.3187]
[1756885352740,1.82180472,4308.7,4308.5,3.2078]
[1756885352741,0.3098,4308.6,4308.5,3.2078]
[1756885352945,1.10530472,4308.7,4308.2,0.5537]
[1756885352946,0.7165,4308.3,4308.2,0.5537]
[1756885353148,1.82180472,4308.3,4308.2,0.5537]
[1756885353741,1.82180472,4308.3,4308.2,0.7475]
[1756885355050,1.82180472,4308.3,4308.0,0.1272]
[1756885355051,1.82180472,4308.3,4307.9,3.2078]
[1756885355252,0.7165,4307.2,4307.1,0.5125]
[1756885355450,2.33190944,4308.0,4306.9,0.7269]
[1756885355451,0.7165,4307.0,4306.9,0.7269]
[1756885356253,0.7165,4307.0,4306.9,0.5125]
[1756885356558,0.8307,4307.0,4306.6,0.5537]
[1756885356852,1.82180472,4306.7,4306.6,0.7475]
[1756885357053,1.82180472,4306.7,4306.6,0.5125]
[1756885357655,1.82180472,4306.7,4306.6,0.3187]
[1756885358156,1.82180472,4306.7,4306.6,0.5125]
[1756885358352,0.3098,4306.6,4306.4,0.3187]
[1756885358552,0.7165,4306.5,4306.4,0.7269]
[1756885358754,0.2075,4306.5,4306.4,0.7269]
[1756885358954,4.52060472,4307.3,4307.2,0.7269]
[1756885359156,0.2075,4307.3,4307.2,0.7269]
[1756885360451,0.7165,4307.3,4307.2,0.7269]
[1756885362054,0.3135,4307.2,4306.8,3.2078]
[1756885362252,0.4057,4307.0,4306.9,0.4472]
[1756885362558,0.4057,4307.0,4306.9,0.967]
[1756885363258,0.7192,4307.7,4307.6,0.732]
[1756885363457,1.82450472,4307.7,4307.6,0.732]
[1756885363851,1.82450472,4307.7,4307.6,0.5314]
[1756885367964,1.82450472,4307.7,4307.1,0.3192]
[1756885368262,1.82450472,4307.2,4307.1,0.732]
[1756885369361,1.51100472,4307.2,4307.1,0.732]
[1756885369764,0.4057,4306.9,4306.8,3.42]
[1756885369952,1.82450472,4306.9,4306.8,0.2122]
[1756885370461,0.3135,4307.7,4306.8,2.07230472]
[1756885370664,1.51100472,4307.6,4307.5,0.2122]
[1756885370858,1.82450472,4307.6,4307.5,0.5314]
[1756885371055,1.82450472,4307.6,4307.5,0.8599]
[1756885371260,0.3135,4307.9,4307.8,0.4128]
[1756885371466,1.30020472,4307.9,4307.8,0.732]
[1756885371666,1.82450472,4307.9,4307.8,0.732]
[1756885374365,0.4057,4307.9,4307.8,0.732]
[1756885374565,0.5084,4308.3,4308.2,0.4128]
[1756885374765,0.5084,4308.3,4308.2,0.732]
[1756885375264,0.1949,4308.3,4308.2,0.732]
[1756885375968,0.7192,4308.3,4308.2,0.732]
[1756885376770,0.4057,4308.3,4308.2,0.732]
[1756885379865,0.7192,4308.3,4308.2,0.732]
[1756885382172,1.3516509,4308.7,4308.3,0.3192]
[1756885382369,0.1949,4308.7,4308.6,0.732]
[1756885382569,0.3135,4309.1,4308.6,0.732]
[1756885382871,0.4057,4309.1,4309.0,0.8599]
[1756885383066,1.9923509,4309.6,4309.5,0.2122]
[1756885383373,0.7192,4309.6,4309.5,0.8599]
[1756885383566,0.7192,4309.6,4309.0,0.1279]
[1756885383767,1.8759509,4309.4,4309.3,0.5314]
[1756885383963,0.7192,4309.4,4309.3,0.5314]
[1756885384573,0.7192,4309.4,4309.3,0.732]
[1756885385266,1.3516509,4309.5,4309.3,0.4128]
[1756885385466,1.7573509,4309.5,4309.4,0.3192]
[1756885385666,2.0708509,4309.5,4309.4,0.5314]
[1756885386372,2.0708509,4309.5,4309.4,0.732]
[1756885388371,2.0708509,4309.5,4309.4,0.5314]
[1756885389766,2.0708509,4309.5,4309.4,0.732]
[1756885392675,1.7573509,4309.5,4309.4,0.732]
[1756885392876,0.4057,4309.5,4309.4,0.732]
[1756885393475,0.1949,4309.5,4309.4,0.732]
[1756885394475,3.2078,4309.7,4309.6,0.7144]
[1756885395567,3.4053,4309.7,4309.6,0.7144]
[1756885397674,3.6043,4309.7,4309.6,0.7144]
[1756885397973,3.9027,4309.7,4309.6,0.7144]
[1756885398477,0.1975,4309.7,4309.6,0.7144]
[1756885398669,0.2984,4310.0,4309.7,0.2957]
[1756885398874,0.4959,4310.0,4309.9,0.7144]
[1756885399074,0.6949,4310.0,4309.9,0.7144]
[1756885399377,0.3965,4310.0,4309.9,0.7144]
[1756885400071,0.1975,4310.0,4309.9,0.7144]
[1756885400277,0.3965,4310.0,4309.9,0.7144]
[1756885400466,0.6949,4310.3,4310.2,0.7144]
[1756885402978,0.6949,4310.3,4309.8,0.235]
[1756885403179,0.6949,4310.0,4309.9,0.5019]
[1756885403773,0.6949,4310.0,4309.9,0.7144]
[1756885404779,0.3965,4310.0,4309.9,0.7144]
[1756885405482,0.2984,4310.3,4310.0,0.1237]
[1756885405778,0.6949,4310.3,4310.2,0.7144]
[1756885408185,0.3965,4310.3,4309.7,3.2078]
[1756885408375,2.0465509,4309.8,4309.7,3.9447]
[1756885408581,2.0465509,4309.8,4309.7,0.5019]
[1756885409476,2.0465509,4309.8,4309.5,3.3315]
[1756885409684,0.6949,4309.7,4309.6,0.5307]
[1756885409886,0.6949,4309.7,4309.6,0.7369]
[1756885411490,0.6949,4309.7,4309.6,0.5019]
[1756885414087,0.6949,4309.7,4309.6,0.7144]
[1756885418194,0.6949,4309.7,4309.6,0.9494]
[1756885418388,1.8475509,4310.1,4310.0,0.5424]
[1756885418593,1.8475509,4310.1,4310.0,0.8381]
[1756885418894,2.0465509,4310.1,4310.0,0.8381]
[1756885419390,2.0465509,4310.1,4310.0,0.7144]
[1756885420194,2.0465509,4310.1,4310.0,0.5019]
[1756885421290,2.0465509,4310.1,4309.5,3.3315]
[1756885421595,0.7105,4309.7,4309.6,0.9229]
[1756885424598,0.4127,4309.7,4309.6,0.9229]
[1756885425203,0.7105,4309.7,4309.6,0.9229]
[1756885426293,0.4127,4309.7,4309.6,0.9229]
[1756885430600,0.2082,4309.7,4309.6,0.9229]
[1756885432700,0.7105,4310.3,4310.2,0.6879]
[1756885433295,0.7105,4310.3,4310.2,0.4898]
[1756885434405,0.4127,4310.3,4310.2,0.6879]
[1756885435314,0.7105,4310.3,4310.2,0.6879]
[1756885439409,1.81631682,4310.3,4310.2,0.6879]
[1756885440311,0.2978,4310.7,4310.2,0.6879]
[1756885440518,1.10581682,4310.6,4310.5,0.8048]
[1756885440718,1.31401682,4310.6,4310.5,0.8048]
[1756885440917,1.81631682,4310.6,4310.5,0.6879]
[1756885441517,1.81631682,4310.6,4310.5,0.4898]
[1756885441716,1.81631682,4310.6,4310.5,0.294]
[1756885441918,1.81631682,4310.6,4310.0,3.3247]
[1756885441919,1.81631682,4310.6,4310.2,0.294]
[1756885442117,1.10581682,4310.3,4310.2,0.6879]
[1756885442307,1.81631682,4310.3,4310.2,0.6879]
[1756885443912,3.2078,4311.0,4310.2,0.6879]
[1756885444117,1.10581682,4310.6,4310.2,1.49971682]
[1756885444319,1.10581682,4310.6,4310.5,0.5108]
[1756885444617,1.10581682,4310.6,4310.5,0.8048]
[1756885445915,1.10581682,4310.6,4310.5,4.0126]
[1756885446119,3.6205,4311.5,4311.4,0.3939]
[1756885446419,3.6205,4311.5,4311.4,0.6879]
[1756885446614,3.2078,4311.5,4311.4,0.6879]
[1756885446818,3.7138,4312.7,4312.6,0.1958]
[1756885447009,3.7138,4312.7,4312.6,0.6879]
[1756885447215,3.9183,4312.7,4312.6,0.6879]
[1756885447620,3.9183,4312.7,4312.6,0.4898]
[1756885448916,5.02411682,4312.7,4312.6,0.4898]
[1756885450717,5.25911682,4312.7,4312.6,0.4898]
[1756885451015,0.4127,4312.2,4312.1,0.4898]
[1756885451325,0.7105,4312.2,4312.1,0.6879]
[1756885451618,0.4127,4312.2,4312.1,0.6879]
[1756885451823,3.4428,4312.7,4312.2,0.2991]
[1756885451824,0.235,4312.6,4312.2,0.2991]
[1756885452025,1.30931682,4312.5,4312.4,0.4082]
[1756885452225,1.30931682,4312.5,4312.4,0.7073]
[1756885453224,1.80261682,4312.5,4312.4,0.7073]
[1756885454328,0.4063,4312.5,4312.4,0.7073]
[1756885455025,0.6968,4312.5,4312.4,0.7073]
[1756885455619,0.8129,4312.5,4312.0,0.1169]
[1756885455823,0.6968,4312.2,4311.6,0.2991]
[1756885456024,0.2035,4311.9,4311.8,0.7073]
[1756885456212,1.39631682,4312.2,4311.8,0.7073]
[1756885456420,1.51211682,4312.2,4312.1,0.7073]
[1756885456726,1.80261682,4312.2,4312.1,0.7073]
[1756885457127,0.2035,4312.2,4312.1,0.7073]
[1756885458026,1.80261682,4312.2,4312.1,0.7073]
[1756885458228,1.80261682,4312.2,4312.1,0.5131]
[1756885458923,1.80261682,4312.2,4312.1,0.7073]
[1756885460326,0.0082,4312.8,4312.5,0.8352]
[1756885460531,0.0082,4312.8,4312.7,1.81311682]
[1756885461827,4.60411682,4313.7,4312.7,1.81311682]
[1756885462031,4.60411682,4313.7,4312.8,0.2991]
[1756885462230,4.60411682,4313.7,4313.1,0.2991]
[1756885462730,0.2035,4313.2,4313.1,0.7073]
[1756885464032,4.60411682,4313.7,4313.1,0.4082]
[1756885464232,4.60411682,4313.7,4313.2,0.2991]
[1756885464633,0.2035,4313.3,4313.2,0.7073]
[1756885465037,3.2078,4313.7,4313.6,0.7073]
[1756885465230,3.2078,4313.7,4313.6,1.81311682]
[1756885466135,3.4113,4313.7,4313.6,1.81311682]
[1756885466736,3.9046,4313.7,4313.6,0.7073]
[1756885467031,0.4063,4313.3,4313.2,0.2991]
[1756885467231,0.2035,4313.2,4313.1,0.4933]
[1756885467436,0.6968,4313.2,4313.1,0.7073]
[1756885467633,0.6968,4313.2,4313.1,0.5131]
[1756885468836,0.6968,4313.2,4312.6,4.31361682]
[1756885469035,0.4063,4312.8,4312.7,0.9423]
[1756885469334,1.80261682,4312.8,4312.7,0.7073]
[1756885469730,0.6968,4312.8,4312.7,0.7073]
[1756885469938,0.4063,4312.8,4312.7,0.7073]
[1756885470535,0.6968,4312.8,4312.7,0.7073]
[1756885470733,0.6968,4312.8,4312.7,0.5131]
[1756885471038,1.80261682,4312.8,4312.7,0.5131]
[1756885471538,1.80261682,4312.8,4312.7,0.7073]
[1756885472634,0.6968,4312.8,4312.7,0.7073]
[1756885472839,0.2035,4312.8,4312.7,0.7073]
[1756885473040,0.6968,4312.8,4312.7,0.7073]
[1756885473340,0.4063,4312.8,4312.7,0.7073]
[1756885473540,0.6968,4312.8,4312.7,0.7073]
[1756885474544,0.4063,4312.8,4312.7,0.7073]
[1756885475638,3.2078,4313.2,4313.0,0.1279]
[1756885475941,3.2078,4313.2,4313.1,0.7073]
[1756885476346,3.4983,4313.2,4313.1,0.7073]
[1756885476645,3.7018,4313.2,4313.1,0.7073]
[1756885477145,3.4113,4313.2,4313.1,0.7073]
[1756885477631,3.9046,4313.2,4312.6,0.2991]
[1756885477940,3.6141,4313.2,4313.1,0.5131]
[1756885478141,0.235,4313.6,4313.1,1.81311682]
[1756885478336,0.6413,4313.6,4313.5,0.214]
[1756885478535,0.9318,4313.6,4313.5,0.5131]
[1756885479438,0.6968,4313.6,4313.5,0.5131]
[1756885482042,0.6968,4313.6,4313.5,0.7073]
[1756885482247,0.1158,4315.0,4313.5,0.7073]
[1756885482248,0.3033,4313.9,4313.6,0.3005]
[1756885482434,0.7109,4313.9,4313.8,0.7076]
[1756885484649,0.7109,4313.9,4313.8,0.5083]
[1756885485345,0.7109,4313.9,4313.6,0.3005]
[1756885485741,0.7109,4313.9,4313.8,0.2078]
[1756885485941,1.81671682,4313.9,4313.8,0.5083]
[1756885486150,1.81671682,4313.9,4313.6,0.3005]
[1756885486448,0.7109,4313.8,4313.7,0.2078]
[1756885486956,0.7109,4313.8,4313.7,0.5083]
[1756885488048,0.7109,4313.8,4313.7,0.7076]
[1756885489452,0.4076,4313.8,4313.7,0.7076]
[1756885490747,0.7109,4313.8,4313.7,0.7076]
[1756885491349,0.3033,4313.7,4313.2,0.3005]
[1756885491652,0.7109,4313.3,4313.2,0.5083]
[1756885492554,0.7109,4313.3,4313.2,0.7076]
[1756885492746,0.4076,4313.3,4313.2,0.7076]